fUSD/lending_fUSD_20240301
["ID","MTS","AMOUNT","RATE_DAILY","PERIOD"]
[315936263,1709292432793,-292.18898754,0.00022262,2]
[315936264,1709292434357,-344.82,0.0002216,2]
[315936265,1709292434383,-207.81101246,0.00022262,2]
[315936266,1709292434409,-500.0,0.00022262,2]
[315936267,1709292434435,-500.0,0.00022262,2]
[315936268,1709292434463,-500.0,0.00022262,2]
[315936269,1709292434493,-1564.02,0.00022262,2]
[315936270,1709292434521,-500.0,0.00022262,2]
[315936271,1709292434547,-500.0,0.00022262,2]
[315936272,1709292434573,-500.0,0.00022262,2]
[315936273,1709292434599,-682.32,0.00022262,2]
[315936274,1709292434626,-1725.38,0.00022262,2]
[315936275,1709292434653,-500.0,0.00022262,2]
[315936276,1709292434683,-500.0,0.00022262,2]
[315936277,1709292434711,-500.0,0.00022262,2]
[315936278,1709292434738,-500.0,0.00022262,2]
[315936279,1709292434766,-573.76,0.00022262,2]
[315936280,1709292434795,-500.0,0.00022262,2]
[315936281,1709292434822,-3197.07,0.00022262,2]
[315936282,1709292434849,-500.0,0.00022262,2]
[315936283,1709292434877,-500.0,0.00022262,2]
[315936284,1709292434904,-500.0,0.00022262,2]
[315936285,1709292434934,-500.0,0.00022262,2]
[315936286,1709292434961,-1383.26,0.00022262,2]
[315936287,1709292434988,-841.45,0.00022262,2]
[315936288,1709292435014,-500.0,0.00022262,2]
[315936289,1709292435041,-500.0,0.00022262,2]
[315936290,1709292435069,-150.0,0.00022262,2]
[315936291,1709292435096,-500.0,0.00022262,2]
[315936292,1709292435124,-500.0,0.00022262,2]
[315936293,1709292435150,-514.1,0.00022262,2]
[315936294,1709292435177,-558.0,0.00022262,2]
[315936295,1709292435204,-500.0,0.00022262,2]
[315936296,1709292435231,-500.0,0.00022262,2]
[315936297,1709292435257,-778.06,0.00022262,2]
[315936298,1709292435284,-500.0,0.00022262,2]
[315936299,1709292435311,-619.2,0.00022262,2]
[315936300,1709292435337,-500.0,0.00022262,2]
[315936301,1709292435364,-500.0,0.00022262,2]
[315936302,1709292435390,-714.28,0.00022262,2]
[315936303,1709292435418,-500.0,0.00022262,2]
[315936304,1709292435445,-500.0,0.00022262,2]
[315936305,1709292435473,-904.53,0.00022262,2]
[315936306,1709292435501,-990.27,0.00022262,2]
[315936307,1709292435528,-600.454554,0.00022262,2]
[315936308,1709292435556,-572.57,0.00022262,2]
[315936309,1709292435582,-500.0,0.00022262,2]
[315936310,1709292435610,-500.0,0.00022262,2]
[315936311,1709292435637,-3358.03,0.00022262,2]
[315936312,1709292435664,-500.0,0.00022262,2]
[315936313,1709292435691,-939.72,0.00022262,2]
[315936314,1709292435716,-500.0,0.00022262,2]
[315936315,1709292435744,-150.0,0.00022262,2]
[315936316,1709292435770,-500.0,0.00022262,2]
[315936317,1709292435796,-613.29,0.00022262,2]
[315936318,1709292435821,-1959.8,0.00022262,2]
[315936319,1709292435847,-649.9,0.00022262,2]
[315936320,1709292435873,-2653.75,0.00022262,2]
[315936321,1709292435899,-767.84,0.00022262,2]
[315936322,1709292436053,-420.9195154,0.00022262,2]
[315936323,1709292436082,-500.0,0.00022262,2]
[315936324,1709292436108,-500.0,0.00022262,2]
[315936325,1709292436134,-615.14,0.00022262,2]
[315936326,1709292436160,-567.78,0.00022262,2]
[315936327,1709292436187,-1342.0,0.00022262,2]
[315936328,1709292436213,-500.0,0.00022262,2]
[315936329,1709292436239,-672.29,0.00022262,2]
[315936330,1709292436265,-500.0,0.00022262,2]
[315936331,1709292436292,-567.95,0.00022262,2]
[315936332,1709292436317,-668.53,0.00022262,2]
[315936333,1709292436345,-1260.91,0.00022262,2]
[315936334,1709292436371,-500.0,0.00022262,2]
[315936335,1709292436397,-1591.5,0.00022262,2]
[315936336,1709292436425,-514.41,0.00022262,2]
[315936337,1709292436452,-1276.12,0.00022262,2]
[315936338,1709292436486,-1972.62,0.00022262,2]
[315936339,1709292436514,-1756.42,0.00022262,2]
[315936340,1709292436541,-500.0,0.00022262,2]
[315936341,1709292436569,-5062.04,0.00022262,2]
[315936342,1709292436595,-500.0,0.00022262,2]
[315936343,1709292436624,-500.0,0.00022262,2]
[315936344,1709292436653,-2309.15,0.00022262,2]
[315936345,1709292436683,-7305.14,0.00022262,2]
[315936346,1709292436711,-500.0,0.00022262,2]
[315936347,1709292436739,-542.72,0.00022262,2]
[315936348,1709292436766,-1443.7,0.00022262,2]
[315936349,1709292436793,-500.0,0.00022262,2]
[315936350,1709292436821,-999.71,0.00022262,2]
[315936351,1709292436848,-500.0,0.00022262,2]
[315936352,1709292436875,-500.0,0.00022262,2]
[315936353,1709292436902,-182.77865188,0.00022263,2]
[315936354,1709292436928,-837.51,0.00022263,2]
[315936355,1709292436955,-500.0,0.00022263,2]
[315936356,1709292436981,-500.0,0.00022263,2]
[315936357,1709292437009,-500.0,0.00022263,2]
[315936358,1709292437036,-500.0,0.00022263,2]
[315936359,1709292437066,-500.0,0.00022263,2]
[315936360,1709292437092,-500.0,0.00022263,2]
[315936361,1709292437118,-500.0,0.00022263,2]
[315936362,1709292437144,-500.0,0.00022263,2]
[315936363,1709292437171,-500.0,0.00022263,2]
[315936364,1709292437197,-565.64,0.00022263,2]
[315936365,1709292437224,-500.0,0.00022263,2]
[315936366,1709292437250,-500.0,0.00022263,2]
[315936367,1709292437275,-748.24,0.00022263,2]
[315936368,1709292437302,-500.0,0.00022263,2]
[315936369,1709292437328,-500.0,0.00022263,2]
[315936370,1709292437355,-500.0,0.00022263,2]
[315936371,1709292437380,-513.44,0.00022263,2]
[315936372,1709292437406,-500.0,0.00022263,2]
[315936373,1709292437434,-500.0,0.00022263,2]
[315936374,1709292437469,-539.36,0.00022263,2]
[315936375,1709292437498,-500.0,0.00022263,2]
[315936376,1709292437524,-504.75,0.00022263,2]
[315936377,1709292437552,-500.0,0.00022263,2]
[315936378,1709292437586,-500.0,0.00022263,2]
[315936379,1709292437618,-500.0,0.00022263,2]
[315936380,1709292437648,-500.0,0.00022263,2]
[315936381,1709292437677,-500.0,0.00022263,2]
[315936382,1709292437707,-500.0,0.00022263,2]
[315936383,1709292437735,-500.0,0.00022263,2]
[315936384,1709292437763,-500.0,0.00022263,2]
[315936385,1709292437791,-500.0,0.00022263,2]
[315936386,1709292437819,-500.0,0.00022263,2]
[315936387,1709292437847,-500.0,0.00022263,2]
[315936388,1709292437873,-500.0,0.00022263,2]
[315936389,1709292437901,-500.0,0.00022263,2]
[315936390,1709292437929,-500.0,0.00022263,2]
[315936391,1709292437958,-150.0,0.00022263,2]
[315936392,1709292437987,-55.54626626,0.00022263,2]
[315936393,1709292447853,-500.0,0.00021989,2]
[315936394,1709292447880,-158.19273307,0.00022239,2]
[315936395,1709292447907,-832.57,0.00022262,2]
[315936396,1709292447935,-500.0,0.00022262,2]
[315936397,1709292447963,-500.0,0.00022262,2]
[315936398,1709292447989,-500.0,0.00022262,2]
[315936399,1709292448014,-500.0,0.00022262,2]
[315936400,1709292448042,-444.45373374,0.00022263,2]
[315936401,1709292448067,-500.0,0.00022263,2]
[315936402,1709292448093,-500.0,0.00022263,2]
[315936403,1709292448121,-500.0,0.00022263,2]
[315936404,1709292448146,-500.0,0.00022263,2]
[315936405,1709292448171,-898.92,0.00022263,2]
[315936406,1709292448198,-500.0,0.00022263,2]
[315936407,1709292448223,-1308.75,0.00022263,2]
[315936408,1709292448250,-762.15,0.00022263,2]
[315936409,1709292448276,-500.0,0.00022263,2]
[315936410,1709292448302,-456.93,0.00022263,2]
[315936411,1709292448331,-500.0,0.00022263,2]
[315936412,1709292448357,-500.0,0.00022263,2]
[315936413,1709292448382,-970.82,0.00022263,2]
[315936414,1709292448408,-500.0,0.00022263,2]
[315936415,1709292448436,-500.0,0.00022263,2]
[315936416,1709292448466,-500.0,0.00022263,2]
[315936417,1709292448492,-500.0,0.00022263,2]
[315936418,1709292448519,-500.0,0.00022263,2]
[315936419,1709292448546,-500.0,0.00022263,2]
[315936420,1709292448574,-500.0,0.00022263,2]
[315936421,1709292448600,-500.0,0.00022263,2]
[315936422,1709292448628,-500.0,0.00022263,2]
[315936423,1709292448655,-500.0,0.00022263,2]
[315936424,1709292448681,-599.66,0.00022263,2]
[315936425,1709292448707,-500.0,0.00022263,2]
[315936426,1709292448734,-500.0,0.00022263,2]
[315936427,1709292448761,-500.0,0.00022263,2]
[315936428,1709292448788,-500.0,0.00022263,2]
[315936429,1709292448817,-173.89,0.00022264,2]
[315936430,1709292448845,-150.0,0.00022264,2]
[315936431,1709292448873,-150.0,0.00022267,2]
[315936432,1709292448901,-150.0,0.00022268,2]
[315936433,1709292448931,-150.0,0.0002227,2]
[315936434,1709292448959,-150.0,0.00022275,2]
[315936435,1709292448987,-150.0,0.00022278,2]
[315936436,1709292449014,-1500.0,0.00022279,2]
[315936437,1709292449223,-150.0,0.00022288,2]
[315936438,1709292449254,-150.0,0.00022288,2]
[315936439,1709292449284,-150.0,0.00022289,2]
[315936440,1709292449318,-150.0,0.00022293,2]
[315936441,1709292449346,-150.0,0.00022294,2]
[315936442,1709292449375,-150.0,0.00022295,2]
[315936443,1709292449404,-150.0,0.00022297,2]
[315936444,1709292449434,-158.68989543,0.00022298,2]
[315936445,1709292449464,-945.63430848,0.00022299,2]
[315936446,1709292449492,-1000.0,0.00022299,2]
[315936447,1709292449525,-150.0,0.00022301,2]
[315936448,1709292449552,-300.0,0.00022305,2]
[315936449,1709292449581,-150.0,0.00022308,2]
[315936450,1709292449610,-150.0,0.00022311,2]
[315936451,1709292449639,-150.0,0.0002232,2]
[315936452,1709292449668,-150.0,0.00022322,2]
[315936453,1709292449697,-300.0,0.00022325,2]
[315936454,1709292449733,-300.0,0.00022328,2]
[315936455,1709292449763,-150.0,0.00022333,2]
[315936456,1709292449791,-150.0,0.00022335,2]
[315936457,1709292449818,-327.44764839,0.00022339,2]
[315936458,1709292449847,-150.0,0.0002234,2]
[315936459,1709292449876,-150.0,0.00022341,2]
[315936460,1709292449904,-1500.0,0.00022343,2]
[315936461,1709292449935,-150.0,0.00022344,2]
[315936462,1709292449965,-150.0,0.00022346,2]
[315936463,1709292449994,-150.0,0.00022348,2]
[315936464,1709292450022,-150.0,0.00022351,2]
[315936465,1709292450059,-150.0,0.00022353,2]
[315936466,1709292450087,-1591.58394536,0.00022355,2]
[315936467,1709292450115,-150.0,0.00022357,2]
[315936468,1709292450144,-151.95465577,0.00022357,2]
[315936469,1709292450174,-150.0,0.00022357,2]
[315936470,1709292450205,-150.0,0.00022358,2]
[315936471,1709292450236,-150.0,0.00022366,2]
[315936472,1709292450265,-150.0,0.00022371,2]
[315936473,1709292450294,-150.0,0.00022374,2]
[315936474,1709292450325,-150.0,0.00022374,2]
[315936475,1709292450354,-1500.0,0.00022378,2]
[315936476,1709292450385,-173.89,0.00022379,2]
[315936477,1709292450413,-1500.0,0.00022383,2]
[315936478,1709292450447,-150.0,0.00022384,2]
[315936479,1709292450485,-150.0,0.00022385,2]
[315936480,1709292450520,-150.0,0.0002239,2]
[315936481,1709292450551,-150.0,0.0002239,2]
[315936482,1709292450585,-150.0,0.0002239,2]
[315936483,1709292450618,-150.0,0.0002239,2]
[315936484,1709292450651,-401.83170447,0.00022391,2]
[315936485,1709292450683,-163.76895727,0.00022392,2]
[315936486,1709292450714,-150.0,0.00022392,2]
[315936487,1709292450747,-150.0,0.00022395,2]
[315936488,1709292450779,-150.0,0.00022397,2]
[315936489,1709292450811,-200.0,0.00022399,2]
[315936490,1709292450842,-1138.0,0.000224,2]
[315936491,1709292450869,-1500.0,0.00022401,2]
[315936492,1709292450904,-150.0,0.00022402,2]
[315936493,1709292450938,-150.0,0.00022402,2]
[315936494,1709292450969,-150.0,0.00022404,2]
[315936495,1709292450998,-407.37,0.00022407,2]
[315936496,1709292451031,-1839.76,0.00022407,2]
[315936497,1709292451062,-407.37,0.00022407,2]
[315936498,1709292451095,-407.37,0.00022407,2]
[315936499,1709292451127,-920.07,0.00022407,2]
[315936500,1709292451154,-920.07,0.00022407,2]
[315936501,1709292451183,-407.37,0.00022407,2]
[315936502,1709292451218,-920.07,0.00022407,2]
[315936503,1709292451249,-920.07,0.00022407,2]
[315936504,1709292451282,-407.37,0.00022407,2]
[315936505,1709292451313,-920.07,0.00022407,2]
[315936506,1709292451342,-813.84,0.00022408,2]
[315936507,1709292451372,-407.37,0.00022408,2]
[315936508,1709292451403,-150.0,0.00022413,2]
[315936509,1709292451434,-150.0,0.00022414,2]
[315936510,1709292451468,-150.0,0.00022416,2]
[315936511,1709292451500,-150.0,0.00022416,2]
[315936512,1709292451532,-150.0,0.00022416,2]
[315936513,1709292451562,-1500.0,0.00022421,2]
[315936514,1709292451594,-150.0,0.00022426,2]
[315936515,1709292451624,-150.0,0.00022427,2]
[315936516,1709292451655,-150.0,0.00022428,2]
[315936517,1709292451686,-399.98017592,0.00022429,2]
[315936518,1709292451717,-150.0,0.00022429,2]
[315936519,1709292451747,-150.0,0.00022431,2]
[315936520,1709292451780,-150.0,0.00022432,2]
[315936521,1709292451815,-150.0,0.00022436,2]
[315936522,1709292451850,-150.0,0.0002244,2]
[315936523,1709292451884,-150.0,0.00022444,2]
[315936524,1709292451919,-4833.22491403,0.00022449,3]
[315936525,1709292451956,-1000.0,0.00022449,3]
[315936526,1709292451990,-397.71961619,0.00022449,3]
[315936527,1709292452023,-218.7457889,0.00022449,3]
[315936528,1709292452055,-416.48130461,0.00022449,3]
[315936529,1709292452087,-642.6314365,0.00022449,3]
[315936530,1709292452120,-758.94116936,0.00022449,3]
[315936531,1709292452151,-179.00274393,0.00022449,3]
[315936532,1709292452183,-395.58563715,0.00022449,3]
[315936533,1709292452215,-233.97197082,0.00022449,3]
[315936534,1709292452245,-1500.0,0.0002245,2]
[315936535,1709292452276,-300.0,0.0002245,2]
[315936536,1709292452313,-300.0,0.00022451,2]
[315936537,1709292452345,-150.0,0.00022451,2]
[315936538,1709292452379,-150.0,0.00022452,2]
[315936539,1709292452413,-150.0,0.00022457,2]
[315936540,1709292452447,-150.0,0.00022458,2]
[315936541,1709292452479,-198.3849054,0.0002246,2]
[315936542,1709292452509,-662.80191553,0.00022462,2]
[315936543,1709292452541,-1814.87,0.00022462,2]
[315936544,1709292452580,-1382.49,0.00022462,2]
[315936545,1709292452610,-1113.01,0.00022462,2]
[315936546,1709292452641,-1716.75,0.00022462,2]
[315936547,1709292452671,-742.77,0.00022462,2]
[315936548,1709292452701,-500.0,0.00022462,2]
[315936549,1709292452731,-862.68,0.00022462,2]
[315936550,1709292452760,-500.0,0.00022462,2]
[315936551,1709292452790,-820.77,0.00022462,2]
[315936552,1709292452819,-818.58,0.00022462,2]
[315936553,1709292452847,-1137.89,0.00022462,2]
[315936554,1709292452876,-500.0,0.00022462,2]
[315936555,1709292452905,-500.0,0.00022462,2]
[315936556,1709292452937,-500.0,0.00022462,2]
[315936557,1709292452968,-732.36,0.00022462,2]
[315936558,1709292452998,-5550.51,0.00022462,2]
[315936559,1709292453028,-1178.31,0.00022462,2]
[315936560,1709292453056,-987.57,0.00022462,2]
[315936561,1709292453084,-606.51,0.00022462,2]
[315936562,1709292453112,-627.06,0.00022462,2]
[315936563,1709292453140,-1362.5,0.00022462,2]
[315936564,1709292453168,-500.0,0.00022462,2]
[315936565,1709292453196,-1439.86,0.00022462,2]
[315936566,1709292453225,-720.23,0.00022462,2]
[315936567,1709292453253,-500.0,0.00022462,2]
[315936568,1709292453282,-853.95,0.00022462,2]
[315936569,1709292453310,-500.0,0.00022462,2]
[315936570,1709292453340,-1333.19,0.00022462,2]
[315936571,1709292453369,-541.7,0.00022462,2]
[315936572,1709292453399,-544.44,0.00022462,2]
[315936573,1709292453429,-554.87,0.00022462,2]
[315936574,1709292453458,-562.35083968,0.00022462,2]
[315936575,1709292457914,-392.19228812,0.00022262,2]
[315936576,1709292457942,-500.0,0.00022262,2]
[315936577,1709292457969,-500.0,0.00022262,2]
[315936578,1709292457996,-3266.19627986,0.00022437,2]
[315936579,1709292458024,-229.93600043,0.00022449,3]
[315936580,1709292458052,-3603.07916032,0.00022462,2]
[315936581,1709292458078,-586.35,0.00022462,2]
[315936582,1709292458104,-743.86,0.00022462,2]
[315936583,1709292458131,-758.77,0.00022462,2]
[315936584,1709292458158,-6004.98,0.00022462,2]
[315936585,1709292458186,-719.75,0.00022462,2]
[315936586,1709292458212,-653.33,0.00022462,2]
[315936587,1709292458238,-4522.74,0.00022462,2]
[315936588,1709292458263,-1030.03,0.00022462,2]
[315936589,1709292458289,-987.26,0.00022462,2]
[315936590,1709292458316,-500.0,0.00022462,2]
[315936591,1709292458342,-640.81,0.00022462,2]
[315936592,1709292458368,-500.0,0.00022462,2]
[315936593,1709292458396,-1631.41,0.00022462,2]
[315936594,1709292458424,-500.0,0.00022462,2]
[315936595,1709292458459,-4098.28,0.00022462,2]
[315936596,1709292458490,-1297.62,0.00022462,2]
[315936597,1709292458519,-1348.86,0.00022462,2]
[315936598,1709292458547,-1653.49,0.00022462,2]
[315936599,1709292458576,-806.39,0.00022462,2]
[315936600,1709292458603,-585.56,0.00022462,2]
[315936601,1709292458630,-500.0,0.00022462,2]
[315936602,1709292458658,-1194.97,0.00022462,2]
[315936603,1709292458687,-204.73380643,0.00022463,2]
[315936604,1709292458713,-4990.18398372,0.00022463,2]
[315936605,1709292458740,-624.13,0.00022463,2]
[315936606,1709292458769,-500.0,0.00022463,2]
[315936607,1709292458795,-500.0,0.00022463,2]
[315936608,1709292458822,-500.0,0.00022463,2]
[315936609,1709292458849,-500.0,0.00022463,2]
[315936610,1709292458875,-573.61,0.00022463,2]
[315936611,1709292458902,-500.0,0.00022463,2]
[315936612,1709292458928,-500.0,0.00022463,2]
[315936613,1709292458958,-500.0,0.00022463,2]
[315936614,1709292458988,-500.0,0.00022463,2]
[315936615,1709292459016,-500.0,0.00022463,2]
[315936616,1709292459044,-500.0,0.00022463,2]
[315936617,1709292459075,-1543.06,0.00022463,2]
[315936618,1709292459107,-7758.65,0.00022463,2]
[315936619,1709292459138,-500.0,0.00022463,2]
[315936620,1709292459173,-39049.76848112,0.00022464,2]
[315936621,1709292460970,-100000.0,0.00022464,2]
[315936622,1709292464830,-500.0,0.00021917,2]
[315936623,1709292464856,-500.0,0.00022191,2]
[315936624,1709292464883,-684.52,0.00022462,2]
[315936625,1709292464909,-204.73380643,0.00022463,2]
[315936626,1709292464935,-4990.18398372,0.00022463,2]
[315936627,1709292464964,-93120.56220985,0.00022464,2]
[315936628,1709292467019,-745.91,0.00022262,2]
[315936629,1709292467048,-3063.86,0.00022462,2]
[315936630,1709292467075,-96190.23,0.00022464,2]
[315936631,1709292469106,-500.0,0.00021989,2]
[315936632,1709292469133,-1739.25,0.00022262,2]
[315936633,1709292469160,-500.0,0.00022263,2]
[315936634,1709292469187,-598.13,0.00022462,2]
[315936635,1709292469214,-162.11953526,0.00022463,2]
[315936636,1709292469240,-4990.18398372,0.00022463,2]
[315936637,1709292469266,-91510.31648102,0.00022464,2]
[315936638,1709292471826,-500.0,0.00022262,2]
[315936639,1709292471854,-48345.83933971,0.00022464,2]
[315936640,1709292471881,-4232.6059773,0.00022464,2]
[315936641,1709292471910,-46921.55468299,0.00022465,4]
[315936643,1709292551344,-150.5,0.0003017,35]
[315936644,1709292551371,-150.5,0.0003017,35]
[315936645,1709292551394,-150.5,0.0003017,35]
[315936646,1709292551420,-150.5,0.0003017,35]
[315936647,1709292551442,-368.0,0.0003017,35]
[315936648,1709292551465,-150.5,0.0003017,35]
[315936649,1709292551696,-368.0,0.0003017,35]
[315936650,1709292551720,-150.5,0.0003017,35]
[315936651,1709292551743,-1247.0,0.0003017,35]
[315936652,1709292551765,-1247.0,0.0003017,35]
[315936653,1709292551789,-150.5,0.0003018,35]
[315936654,1709292551811,-150.5,0.0003018,35]
[315936655,1709292551834,-150.5,0.0003018,35]
[315936656,1709292551862,-150.5,0.0003018,35]
[315936657,1709292551884,-150.5,0.0003018,35]
[315936658,1709292551908,-368.0,0.0003018,35]
[315936659,1709292551934,-155.25,0.0003018,35]
[315936660,1709292551958,-150.5,0.0003018,35]
[315936661,1709292551980,-197.39,0.0003018,35]
[315936662,1709292552002,-188.83,0.0003018,35]
[315936663,1709292552025,-368.0,0.0003018,35]
[315936664,1709292552047,-158.64,0.0003018,35]
[315936665,1709292552070,-368.0,0.0003018,35]
[315936666,1709292552093,-150.5,0.0003018,35]
[315936667,1709292552115,-1247.0,0.0003018,35]
[315936668,1709292552139,-371.43,0.0003018,35]
[315936669,1709292552165,-226.32,0.0003018,35]
[315936670,1709292552189,-1247.0,0.0003018,35]
[315936671,1709292552212,-1247.0,0.0003018,35]
[315936672,1709292552235,-1255.8,0.0003018,35]
[315936673,1709292552259,-150.5,0.0003019,35]
[315936674,1709292552282,-150.5,0.0003019,35]
[315936675,1709292552305,-150.5,0.0003019,35]
[315936676,1709292552328,-150.5,0.0003019,35]
[315936677,1709292552351,-150.5,0.0003019,35]
[315936678,1709292552374,-150.5,0.0003019,35]
[315936679,1709292552399,-150.5,0.0003019,35]
[315936680,1709292552423,-244.5,0.0003019,35]
[315936681,1709292552446,-368.0,0.0003019,35]
[315936682,1709292552468,-221.95,0.0003019,35]
[315936683,1709292552497,-150.5,0.0003019,35]
[315936684,1709292552523,-162.47,0.0003019,35]
[315936685,1709292552548,-150.5,0.0003019,35]
[315936686,1709292552572,-150.5,0.0003019,35]
[315936687,1709292552596,-150.5,0.0003019,35]
[315936688,1709292552619,-368.0,0.0003019,35]
[315936689,1709292552642,-150.5,0.0003019,35]
[315936690,1709292552666,-368.0,0.0003019,35]
[315936691,1709292552688,-1247.0,0.0003019,35]
[315936692,1709292552788,-368.0,0.0003019,35]
[315936693,1709292552810,-150.5,0.0003019,35]
[315936694,1709292552833,-1247.0,0.0003019,35]
[315936695,1709292552862,-1247.0,0.0003019,35]
[315936696,1709292552885,-1247.0,0.0003019,35]
[315936697,1709292552910,-30000.0,0.000305,45]
[315936698,1709292552964,-150.0,0.00034235,120]
[315936699,1709292552998,-150.0,0.00036949,120]
[315936700,1709292553048,-150.0,0.00038618,120]
[315936701,1709292553074,-19470.98089487,0.000389,40]
[315936702,1709292553100,-2000.0,0.00039,60]
[315936703,1709292553122,-7028.69419231,0.00039,56]
[315936704,1709292553146,-600.0,0.00039,40]
[315936705,1709292553169,-1000.0,0.00039,120]
[315936706,1709292553193,-112701.08086653,0.00039,120]
[315936707,1709292553218,-3000.0,0.00039,37]
[315936708,1709292553242,-3000.0,0.0003901,37]
[315936709,1709292553267,-5515.967271,0.0003902,37]
[315936710,1709292553296,-711303.75644839,0.000394,120]
[315936711,1709292553320,-20000.0,0.0003955,120]
[315936712,1709292553344,-76802.28565943,0.000398,60]
[315936713,1709292553367,-15000.0,0.000398,40]
[315936714,1709292553392,-55848.0582309,0.00039998,120]
[315936715,1709292553416,-1243.97482479,0.0004,60]
[315936716,1709292553438,-592.49290884,0.0004,60]
[315936717,1709292553462,-12270.49885,0.0004,33]
[315936718,1709292553485,-2100.0,0.0004,60]
[315936719,1709292553512,-500.0,0.0004,120]
[315936720,1709292553537,-2000.0,0.0004,120]
[315936721,1709292553560,-7237.3,0.0004,120]
[315936722,1709292553585,-5041.6583775,0.0004,55]
[315936723,1709292553608,-20000.0,0.0004,60]
[315936724,1709292553632,-20000.0,0.0004,60]
[315936725,1709292553655,-30000.0,0.0004,90]
[315936726,1709292553678,-30000.0,0.0004,120]
[315936727,1709292553702,-809.0,0.0004,120]
[315936728,1709292553725,-1322.35156285,0.0004,120]
[315936729,1709292553750,-600.0,0.0004,41]
[315936730,1709292553774,-104564.28809177,0.0004,120]
[315936731,1709292553798,-25686.13390802,0.0004,60]
[315936732,1709292553820,-487.0,0.0004,60]
[315936733,1709292553842,-10000.0,0.0004,120]
[315936734,1709292553865,-10000.0,0.0004,120]
[315936735,1709292553896,-10000.0,0.0004,120]
[315936736,1709292553919,-10000.0,0.0004,120]
[315936737,1709292553943,-10000.0,0.0004,120]
[315936738,1709292553965,-15000.0,0.0004,60]
[315936739,1709292553988,-389074.43389111,0.0004,90]
[315936740,1709292554012,-294.29892931,0.0004,120]
[315936741,1709292554036,-510.11163363,0.0004,120]
[315936742,1709292554059,-37408.78521156,0.0004,60]
[315936743,1709292554081,-181.28791165,0.0004,60]
[315936744,1709292554109,-10000.0,0.0004,90]
[315936745,1709292554136,-200.0,0.0004,60]
[315936746,1709292554159,-17683.43476643,0.0004,120]
[315936747,1709292554183,-5702.0,0.0004,77]
[315936748,1709292554208,-150.0,0.00040258,60]
[315936749,1709292554230,-5000.0,0.00040258,60]
[315936750,1709292554252,-5000.0,0.00040258,60]
[315936751,1709292554275,-4905.935829,0.00040258,60]
[315936752,1709292554299,-400.0,0.000405,35]
[315936753,1709292554323,-2591.9,0.000407,60]
[315936754,1709292554345,-9261.33569282,0.000407,60]
[315936755,1709292554368,-5740.67727017,0.00040932,120]
[315936756,1709292554390,-5477.39678986,0.00040986,120]
[315936757,1709292554413,-9159.2,0.00041,120]
[315936758,1709292554436,-600.0,0.00041,42]
[315936759,1709292554458,-2100.0,0.00041,50]
[315936760,1709292554482,-1000.0,0.00041,100]
[315936761,1709292554510,-72753.09998726,0.00041,120]
[315936762,1709292562923,-2000000.0,0.00041,120]
[315936763,1709292567528,-860234.49833695,0.00041,120]